[Event "Titled Tuesday Blitz June 07 Late 2022"]
[White "Bryakin, Mikhail"]
[Black "Grigoriants, Sergey"]
[WhiteFideId "4165314"]
[BlackFideId "4130804"]
[WhiteElo "2417"]
[BlackElo "2502"]
[Result "0-1"]
[Round "03"]
[TimeControl "180+1"]
[Date "2022.06.07"]
[WhiteClock "0:00:02"]
[BlackClock "0:00:07"]

1. e4 {[%clk 0:03:00]}  c6 {[%clk 0:02:55]} 2. Nc3 {[%clk 0:02:54]}  d5 {[%clk 0:02:55]} 3. d4 {[%clk 0:02:53]}  dxe4 {[%clk 0:02:53]} 4. Nxe4 {[%clk 0:02:54]}  Bf5 {[%clk 0:02:53]} 5. Ng3 {[%clk 0:02:54]}  Bg6 {[%clk 0:02:54]} 6. h4 {[%clk 0:02:55]}  h6 {[%clk 0:02:54]} 7. Nf3 {[%clk 0:02:55]}  e6 {[%clk 0:02:54]} 8. Ne5 {[%clk 0:02:53]}  Bh7 {[%clk 0:02:55]} 9. Bd3 {[%clk 0:02:52]}  Bxd3 {[%clk 0:02:54]} 10. Qxd3 {[%clk 0:02:51]}  Nd7 {[%clk 0:02:55]} 11. f4 {[%clk 0:02:51]}  Be7 {[%clk 0:02:54]} 12. h5 {[%clk 0:02:44]}  Ngf6 {[%clk 0:02:46]} 13. Bd2 {[%clk 0:02:40]}  O-O {[%clk 0:02:39]} 14. O-O-O {[%clk 0:02:37]}  c5 {[%clk 0:02:39]} 15. dxc5 {[%clk 0:02:25]}  Nxe5 {[%clk 0:02:30]} 16. Qxd8 {[%clk 0:02:08]}  Rfxd8 {[%clk 0:02:29]} 17. fxe5 {[%clk 0:02:09]}  Ng4 {[%clk 0:02:27]} 18. Bf4 {[%clk 0:02:05]}  Bxc5 {[%clk 0:02:26]} 19. Rhe1 {[%clk 0:01:16]}  Bf2 {[%clk 0:01:47]} 20. Rxd8+ {[%clk 0:00:53]}  Rxd8 {[%clk 0:01:46]} 21. Re4 {[%clk 0:00:53]}  g5 {[%clk 0:01:27]} 22. hxg6 {[%clk 0:00:49]}  fxg6 {[%clk 0:01:27]} 23. Ne2 {[%clk 0:00:32]}  g5 {[%clk 0:01:24]} 24. Bd2 {[%clk 0:00:31]}  Nh2 {[%clk 0:01:16]} 25. Bc3 {[%clk 0:00:20]}  Nf1 {[%clk 0:01:00]} 26. b4 {[%clk 0:00:12]}  Kf7 {[%clk 0:00:52]} 27. a4 {[%clk 0:00:12]}  Kg6 {[%clk 0:00:51]} 28. Rc4 {[%clk 0:00:12]}  Ne3 {[%clk 0:00:44]} 29. Rc7 {[%clk 0:00:12]}  Nxg2 {[%clk 0:00:44]} 30. Rxb7 {[%clk 0:00:12]}  h5 {[%clk 0:00:45]} 31. Re7 {[%clk 0:00:11]}  h4 {[%clk 0:00:40]} 32. Rxe6+ {[%clk 0:00:12]}  Kh5 {[%clk 0:00:40]} 33. Re7 {[%clk 0:00:11]}  h3 {[%clk 0:00:38]} 34. Rh7+ {[%clk 0:00:11]}  Kg4 {[%clk 0:00:38]} 35. e6 {[%clk 0:00:11]}  Nh4 {[%clk 0:00:37]} 36. e7 {[%clk 0:00:10]}  Re8 {[%clk 0:00:35]} 37. Be5 {[%clk 0:00:10]}  Ng6 {[%clk 0:00:32]} 38. Bd6 {[%clk 0:00:09]}  Be3+ {[%clk 0:00:26]} 39. Kb1 {[%clk 0:00:09]}  Bf4 {[%clk 0:00:27]} 40. Nxf4 {[%clk 0:00:03]}  gxf4 {[%clk 0:00:27]} 41. c4 {[%clk 0:00:02]}  f3 {[%clk 0:00:23]} 42. Bc5 {[%clk 0:00:03]}  Nxe7 {[%clk 0:00:17]} 43. Rg7+ {[%clk 0:00:03]}  Kf5 {[%clk 0:00:12]} 44. Rh7 {[%clk 0:00:03]}  Kg4 {[%clk 0:00:10]} 45. Rg7+ {[%clk 0:00:04]}  Kf4 {[%clk 0:00:06]} 46. Rh7 {[%clk 0:00:02]}  Nf5 {[%clk 0:00:07]} 47. Rxh3 {[%clk 0:00:02]}  Re4 {[%clk 0:00:07]} 0-1


[Site "https://www.chess.com"]

[Event "Titled Tuesday Blitz June 07 Late 2022"]
[White "Cruz Mendez, Jean Marco"]
[Black "Ibarra Jerez, Jose Carlos"]
[WhiteFideId "3526402"]
[BlackFideId "2226332"]
[WhiteElo "2064"]
[BlackElo "2628"]
[Result "0-1"]
[Round "03"]
[TimeControl "180+1"]
[Date "2022.06.07"]
[WhiteClock "0:00:06"]
[BlackClock "0:00:06"]

1. Nf3 {[%clk 0:02:59]}  Nf6 {[%clk 0:02:57]} 2. b3 {[%clk 0:02:59]}  d6 {[%clk 0:02:56]} 3. Bb2 {[%clk 0:03:00]}  e5 {[%clk 0:02:56]} 4. e3 {[%clk 0:03:00]}  c5 {[%clk 0:02:41]} 5. d4 {[%clk 0:02:49]}  cxd4 {[%clk 0:02:40]} 6. exd4 {[%clk 0:02:50]}  e4 {[%clk 0:02:40]} 7. Nfd2 {[%clk 0:02:49]}  d5 {[%clk 0:02:40]} 8. c4 {[%clk 0:02:47]}  Nc6 {[%clk 0:02:39]} 9. Be2 {[%clk 0:02:37]}  h5 {[%clk 0:02:17]} 10. cxd5 {[%clk 0:02:21]}  Nxd5 {[%clk 0:02:11]} 11. Nxe4 {[%clk 0:02:18]}  Bb4+ {[%clk 0:02:09]} 12. Kf1 {[%clk 0:02:09]}  O-O {[%clk 0:01:52]} 13. a3 {[%clk 0:02:09]}  Ba5 {[%clk 0:01:47]} 14. Nbd2 {[%clk 0:02:01]}  Re8 {[%clk 0:01:43]} 15. b4 {[%clk 0:01:45]}  Bb6 {[%clk 0:01:41]} 16. Nc5 {[%clk 0:01:46]}  Nf4 {[%clk 0:01:37]} 17. Bc4 {[%clk 0:01:38]}  Qg5 {[%clk 0:01:22]} 18. Qf3 {[%clk 0:01:14]}  Bg4 {[%clk 0:01:14]} 19. Nde4 {[%clk 0:00:20]}  Bxf3 {[%clk 0:00:34]} 20. Nxg5 {[%clk 0:00:20]}  Bxg2+ {[%clk 0:00:35]} 21. Kg1 {[%clk 0:00:20]}  Nd8 {[%clk 0:00:32]} 22. Nd7 {[%clk 0:00:14]}  Bc7 {[%clk 0:00:25]} 23. Ne5 {[%clk 0:00:08]}  Bxe5 {[%clk 0:00:22]} 24. dxe5 {[%clk 0:00:09]}  Rc8 {[%clk 0:00:22]} 25. Bb3 {[%clk 0:00:07]}  Bc6 {[%clk 0:00:19]} 26. Rd1 {[%clk 0:00:04]}  Bxh1 {[%clk 0:00:11]} 27. Kxh1 {[%clk 0:00:05]}  Nde6 {[%clk 0:00:12]} 28. Ne4 {[%clk 0:00:05]}  Red8 {[%clk 0:00:11]} 29. Nd6 {[%clk 0:00:06]}  Rc7 {[%clk 0:00:10]} 30. h4 {[%clk 0:00:04]}  g6 {[%clk 0:00:09]} 31. Kg1 {[%clk 0:00:04]}  Kg7 {[%clk 0:00:10]} 32. Kf1 {[%clk 0:00:05]}  b6 {[%clk 0:00:08]} 33. Kg1 {[%clk 0:00:05]}  Rdd7 {[%clk 0:00:06]} 34. Kh2 {[%clk 0:00:05]}  Rd8 {[%clk 0:00:05]} 35. Kg3 {[%clk 0:00:05]}  Rcd7 {[%clk 0:00:05]} 36. Kh2 {[%clk 0:00:06]}  Kh6 {[%clk 0:00:04]} 37. Bc1 {[%clk 0:00:05]}  Kh7 {[%clk 0:00:03]} 38. Bb2 {[%clk 0:00:06]}  Kg7 {[%clk 0:00:04]} 39. Bc1 {[%clk 0:00:06]}  Kf8 {[%clk 0:00:04]} 40. Bb2 {[%clk 0:00:06]}  Rc7 {[%clk 0:00:05]} 41. Kg3 {[%clk 0:00:06]}  Rdd7 {[%clk 0:00:05]} 42. Kh2 {[%clk 0:00:07]}  Rc6 {[%clk 0:00:04]} 43. Kg3 {[%clk 0:00:07]}  Rdc7 {[%clk 0:00:05]} 44. Kh2 {[%clk 0:00:07]}  a6 {[%clk 0:00:04]} 45. Kg3 {[%clk 0:00:05]}  Rc3+ {[%clk 0:00:04]} 46. Bxc3 {[%clk 0:00:05]}  Rxc3+ {[%clk 0:00:05]} 47. Kh2 {[%clk 0:00:06]}  Rxb3 {[%clk 0:00:06]} 0-1


[Site "https://www.chess.com"]

[Event "Titled Tuesday Blitz June 07 Late 2022"]
[White "Golubev, Mikhail"]
[Black "Puranik, Abhimanyu"]
[WhiteFideId "14100983"]
[BlackFideId "5061245"]
[WhiteElo "2374"]
[BlackElo "2520"]
[Result "1-0"]
[Round "03"]
[TimeControl "180+1"]
[Date "2022.06.07"]
[WhiteClock "0:00:05"]
[BlackClock "0:00:07"]

1. e4 {[%clk 0:03:00]}  e6 {[%clk 0:02:57]} 2. d4 {[%clk 0:03:00]}  d5 {[%clk 0:02:58]} 3. Nc3 {[%clk 0:03:00]}  Bb4 {[%clk 0:02:57]} 4. e5 {[%clk 0:03:00]}  c5 {[%clk 0:02:57]} 5. a3 {[%clk 0:03:01]}  Bxc3+ {[%clk 0:02:58]} 6. bxc3 {[%clk 0:03:01]}  Ne7 {[%clk 0:02:58]} 7. a4 {[%clk 0:03:02]}  Qa5 {[%clk 0:02:57]} 8. Bd2 {[%clk 0:03:01]}  Nbc6 {[%clk 0:02:55]} 9. Nf3 {[%clk 0:03:02]}  Bd7 {[%clk 0:02:55]} 10. Bb5 {[%clk 0:03:02]}  Qc7 {[%clk 0:02:54]} 11. O-O {[%clk 0:02:59]}  Na5 {[%clk 0:02:54]} 12. Bd3 {[%clk 0:02:53]}  c4 {[%clk 0:02:53]} 13. Be2 {[%clk 0:02:53]}  h6 {[%clk 0:02:53]} 14. Bc1 {[%clk 0:02:52]}  Nf5 {[%clk 0:02:42]} 15. Ba3 {[%clk 0:02:44]}  b6 {[%clk 0:02:27]} 16. Qd2 {[%clk 0:02:34]}  g5 {[%clk 0:02:22]} 17. g4 {[%clk 0:02:11]}  Ne7 {[%clk 0:02:18]} 18. h4 {[%clk 0:02:00]}  gxh4 {[%clk 0:02:11]} 19. Nxh4 {[%clk 0:01:58]}  Ng6 {[%clk 0:01:50]} 20. Nxg6 {[%clk 0:01:48]}  fxg6 {[%clk 0:01:51]} 21. Bd6 {[%clk 0:01:43]}  Qd8 {[%clk 0:01:50]} 22. Kg2 {[%clk 0:01:32]}  Nb7 {[%clk 0:01:48]} 23. Bb4 {[%clk 0:01:26]}  Bc6 {[%clk 0:01:35]} 24. Rh1 {[%clk 0:01:23]}  g5 {[%clk 0:01:30]} 25. f4 {[%clk 0:01:21]}  Kd7 {[%clk 0:01:20]} 26. f5 {[%clk 0:01:16]}  Qg8 {[%clk 0:01:18]} 27. fxe6+ {[%clk 0:01:08]}  Qxe6 {[%clk 0:01:17]} 28. Raf1 {[%clk 0:01:03]}  Rae8 {[%clk 0:01:01]} 29. Rf6 {[%clk 0:00:58]}  Qg8 {[%clk 0:01:00]} 30. Rhxh6 {[%clk 0:00:47]}  Rxh6 {[%clk 0:01:00]} 31. Rxh6 {[%clk 0:00:48]}  Nd8 {[%clk 0:01:00]} 32. Rd6+ {[%clk 0:00:43]}  Kc7 {[%clk 0:01:00]} 33. a5 {[%clk 0:00:38]}  Ne6 {[%clk 0:00:57]} 34. axb6+ {[%clk 0:00:31]}  axb6 {[%clk 0:00:57]} 35. Bf3 {[%clk 0:00:15]}  Nf4+ {[%clk 0:00:49]} 36. Kg1 {[%clk 0:00:15]}  Qf7 {[%clk 0:00:45]} 37. Rf6 {[%clk 0:00:12]}  Qg7 {[%clk 0:00:40]} 38. Rxf4 {[%clk 0:00:11]}  gxf4 {[%clk 0:00:38]} 39. Qxf4 {[%clk 0:00:12]}  Qg6 {[%clk 0:00:35]} 40. Qf5 {[%clk 0:00:08]}  Rg8 {[%clk 0:00:24]} 41. Bd6+ {[%clk 0:00:08]}  Kb7 {[%clk 0:00:22]} 42. Qxg6 {[%clk 0:00:07]}  Rxg6 {[%clk 0:00:21]} 43. Kf2 {[%clk 0:00:07]}  Kc8 {[%clk 0:00:17]} 44. Kg3 {[%clk 0:00:07]}  Kd7 {[%clk 0:00:17]} 45. Kf4 {[%clk 0:00:07]}  Ke6 {[%clk 0:00:16]} 46. g5 {[%clk 0:00:07]}  Rg8 {[%clk 0:00:12]} 47. Bg4+ {[%clk 0:00:08]}  Kf7 {[%clk 0:00:12]} 48. Bh5+ {[%clk 0:00:08]}  Kg7 {[%clk 0:00:11]} 49. Bg4 {[%clk 0:00:07]}  Be8 {[%clk 0:00:11]} 50. Bf5 {[%clk 0:00:06]}  Bg6 {[%clk 0:00:11]} 51. e6 {[%clk 0:00:06]}  Re8 {[%clk 0:00:09]} 52. Be5+ {[%clk 0:00:06]}  Kh7 {[%clk 0:00:09]} 53. Bf6 {[%clk 0:00:06]}  b5 {[%clk 0:00:07]} 54. Ke5 {[%clk 0:00:05]} 1-0


[Site "https://www.chess.com"]

[Event "Titled Tuesday Blitz June 07 Late 2022"]
[White "Larino Nieto, David"]
[Black "Livaic, Leon"]
[WhiteFideId "2256444"]
[BlackFideId "14531534"]
[WhiteElo "2532"]
[BlackElo "2540"]
[Result "1/2-1/2"]
[Round "03"]
[TimeControl "180+1"]
[Date "2022.06.07"]
[WhiteClock "0:00:04"]
[BlackClock "0:00:12"]

1. Nf3 {[%clk 0:03:00]}  Nf6 {[%clk 0:02:59]} 2. b3 {[%clk 0:03:00]}  b6 {[%clk 0:03:00]} 3. Bb2 {[%clk 0:03:00]}  Bb7 {[%clk 0:03:01]} 4. g3 {[%clk 0:02:59]}  g6 {[%clk 0:03:01]} 5. Bg2 {[%clk 0:02:59]}  Bg7 {[%clk 0:03:02]} 6. O-O {[%clk 0:03:00]}  O-O {[%clk 0:03:02]} 7. c4 {[%clk 0:03:00]}  c5 {[%clk 0:03:03]} 8. Nc3 {[%clk 0:03:00]}  d5 {[%clk 0:03:03]} 9. Nxd5 {[%clk 0:02:56]}  Nxd5 {[%clk 0:03:04]} 10. Bxg7 {[%clk 0:02:56]}  Kxg7 {[%clk 0:03:04]} 11. cxd5 {[%clk 0:02:56]}  Qxd5 {[%clk 0:03:05]} 12. d4 {[%clk 0:02:53]}  Na6 {[%clk 0:03:06]} 13. dxc5 {[%clk 0:02:49]}  Nxc5 {[%clk 0:03:06]} 14. Qxd5 {[%clk 0:02:41]}  Bxd5 {[%clk 0:03:06]} 15. Rfd1 {[%clk 0:02:42]}  Rfd8 {[%clk 0:03:05]} 16. Ne5 {[%clk 0:02:37]}  Bxg2 {[%clk 0:03:04]} 17. Kxg2 {[%clk 0:02:38]}  Kf6 {[%clk 0:02:44]} 18. Nc6 {[%clk 0:02:24]}  Rdc8 {[%clk 0:02:39]} 19. Nd4 {[%clk 0:02:03]}  Ne4 {[%clk 0:02:28]} 20. Rac1 {[%clk 0:01:33]}  a5 {[%clk 0:02:01]} 21. Kf3 {[%clk 0:01:25]}  Nc5 {[%clk 0:01:44]} 22. Nb5 {[%clk 0:01:20]}  Rc6 {[%clk 0:01:34]} 23. Rc4 {[%clk 0:01:17]}  Rcc8 {[%clk 0:01:16]} 24. e4 {[%clk 0:01:13]}  Ne6 {[%clk 0:01:00]} 25. Rdc1 {[%clk 0:01:01]}  Rc5 {[%clk 0:00:59]} 26. Rxc5 {[%clk 0:00:54]}  bxc5 {[%clk 0:00:55]} 27. a4 {[%clk 0:00:46]}  Rd8 {[%clk 0:00:54]} 28. Ke3 {[%clk 0:00:45]}  Nd4 {[%clk 0:00:46]} 29. Rxc5 {[%clk 0:00:42]}  Nxb3 {[%clk 0:00:46]} 30. Rc6+ {[%clk 0:00:36]}  e6 {[%clk 0:00:43]} 31. Rc3 {[%clk 0:00:32]}  Nd2 {[%clk 0:00:38]} 32. Rc1 {[%clk 0:00:20]}  Nb3 {[%clk 0:00:29]} 33. Rc3 {[%clk 0:00:20]}  Nd2 {[%clk 0:00:29]} 34. h3 {[%clk 0:00:16]}  e5 {[%clk 0:00:24]} 35. Rc6+ {[%clk 0:00:14]}  Kg7 {[%clk 0:00:24]} 36. f4 {[%clk 0:00:12]}  Nf1+ {[%clk 0:00:15]} 37. Kf2 {[%clk 0:00:11]}  Nd2 {[%clk 0:00:16]} 38. Ke3 {[%clk 0:00:10]}  exf4+ {[%clk 0:00:14]} 39. gxf4 {[%clk 0:00:09]}  Nb3 {[%clk 0:00:14]} 40. Rc7 {[%clk 0:00:09]}  Rd1 {[%clk 0:00:05]} 41. e5 {[%clk 0:00:09]}  Kf8 {[%clk 0:00:05]} 42. Nd6 {[%clk 0:00:07]}  Re1+ {[%clk 0:00:04]} 43. Kf2 {[%clk 0:00:07]}  Ra1 {[%clk 0:00:03]} 44. Rxf7+ {[%clk 0:00:08]}  Kg8 {[%clk 0:00:04]} 45. Re7 {[%clk 0:00:08]}  Nc5 {[%clk 0:00:04]} 46. Rc7 {[%clk 0:00:06]}  Ne6 {[%clk 0:00:04]} 47. Rc4 {[%clk 0:00:06]}  Rb1 {[%clk 0:00:04]} 48. Ke3 {[%clk 0:00:06]}  Rb4 {[%clk 0:00:04]} 49. Rxb4 {[%clk 0:00:05]}  axb4 {[%clk 0:00:05]} 50. a5 {[%clk 0:00:05]}  b3 {[%clk 0:00:05]} 51. Nc4 {[%clk 0:00:05]}  Nc5 {[%clk 0:00:04]} 52. Kd4 {[%clk 0:00:05]}  Na4 {[%clk 0:00:05]} 53. a6 {[%clk 0:00:04]}  Nb6 {[%clk 0:00:05]} 54. Nb2 {[%clk 0:00:03]}  Kf7 {[%clk 0:00:05]} 55. Kc5 {[%clk 0:00:04]}  Nc8 {[%clk 0:00:04]} 56. Kc6 {[%clk 0:00:04]}  Ke6 {[%clk 0:00:04]} 57. Kb7 {[%clk 0:00:05]}  Kd7 {[%clk 0:00:05]} 58. a7 {[%clk 0:00:05]}  Nxa7 {[%clk 0:00:05]} 59. Kxa7 {[%clk 0:00:06]}  Ke6 {[%clk 0:00:06]} 60. Kb6 {[%clk 0:00:06]}  g5 {[%clk 0:00:06]} 61. fxg5 {[%clk 0:00:06]}  Kxe5 {[%clk 0:00:07]} 62. Kc5 {[%clk 0:00:06]}  Kf5 {[%clk 0:00:08]} 63. h4 {[%clk 0:00:05]}  Kg4 {[%clk 0:00:08]} 64. Kc4 {[%clk 0:00:03]}  Kxh4 {[%clk 0:00:09]} 65. Kxb3 {[%clk 0:00:03]}  Kxg5 {[%clk 0:00:10]} 66. Nd3 {[%clk 0:00:03]}  h5 {[%clk 0:00:10]} 67. Kc3 {[%clk 0:00:04]}  Kg4 {[%clk 0:00:10]} 68. Kd2 {[%clk 0:00:05]}  Kg3 {[%clk 0:00:11]} 69. Ke2 {[%clk 0:00:05]}  h4 {[%clk 0:00:11]} 70. Nf2 {[%clk 0:00:05]}  Kg2 {[%clk 0:00:12]} 71. Ke3 {[%clk 0:00:05]}  Kf1 {[%clk 0:00:11]} 72. Kf3 {[%clk 0:00:05]}  h3 {[%clk 0:00:12]} 73. Nxh3 {[%clk 0:00:04]} 1/2-1/2


[Site "https://www.chess.com"]

[Event "Titled Tuesday Blitz June 07 Late 2022"]
[White "Maghsoodloo, Parham"]
[Black "Abarca Gonzalez, Nicolas"]
[WhiteFideId "12539929"]
[BlackFideId "3409422"]
[WhiteElo "2607"]
[BlackElo "2504"]
[Result "0-1"]
[Round "03"]
[TimeControl "180+1"]
[Date "2022.06.07"]
[WhiteClock "0:00:14"]
[BlackClock "0:00:27"]

1. d4 {[%clk 0:02:54]}  Nf6 {[%clk 0:02:58]} 2. c4 {[%clk 0:02:54]}  e5 {[%clk 0:02:57]} 3. dxe5 {[%clk 0:02:54]}  Ng4 {[%clk 0:02:58]} 4. Bf4 {[%clk 0:02:54]}  g5 {[%clk 0:02:57]} 5. Bg3 {[%clk 0:02:54]}  Bg7 {[%clk 0:02:57]} 6. Nf3 {[%clk 0:02:53]}  Nc6 {[%clk 0:02:57]} 7. Nc3 {[%clk 0:02:50]}  Ngxe5 {[%clk 0:02:57]} 8. Nxe5 {[%clk 0:02:49]}  Nxe5 {[%clk 0:02:58]} 9. e3 {[%clk 0:02:43]}  d6 {[%clk 0:02:58]} 10. h4 {[%clk 0:02:43]}  g4 {[%clk 0:02:57]} 11. Qc2 {[%clk 0:02:42]}  h5 {[%clk 0:02:55]} 12. Bf4 {[%clk 0:02:40]}  Ng6 {[%clk 0:02:55]} 13. g3 {[%clk 0:02:40]}  Nxf4 {[%clk 0:02:53]} 14. exf4 {[%clk 0:02:40]}  O-O {[%clk 0:02:50]} 15. Be2 {[%clk 0:02:35]}  Re8 {[%clk 0:02:47]} 16. O-O {[%clk 0:02:35]}  c6 {[%clk 0:02:48]} 17. Rad1 {[%clk 0:02:34]}  Qf6 {[%clk 0:02:40]} 18. Bd3 {[%clk 0:02:33]}  Bd7 {[%clk 0:02:20]} 19. Ne4 {[%clk 0:02:25]}  Qxb2 {[%clk 0:02:15]} 20. Qxb2 {[%clk 0:02:25]}  Bxb2 {[%clk 0:02:16]} 21. Nxd6 {[%clk 0:02:25]}  Re7 {[%clk 0:02:01]} 22. Nxb7 {[%clk 0:02:12]}  Ba3 {[%clk 0:01:40]} 23. Na5 {[%clk 0:02:05]}  Rb8 {[%clk 0:01:33]} 24. Nb3 {[%clk 0:01:58]}  Rbe8 {[%clk 0:01:26]} 25. Nd4 {[%clk 0:01:37]}  Bc5 {[%clk 0:01:19]} 26. Nb3 {[%clk 0:01:37]}  Ba3 {[%clk 0:01:20]} 27. Rb1 {[%clk 0:01:33]}  Kg7 {[%clk 0:01:15]} 28. Rfd1 {[%clk 0:01:33]}  c5 {[%clk 0:01:12]} 29. Bf1 {[%clk 0:01:12]}  Bf5 {[%clk 0:01:04]} 30. Bd3 {[%clk 0:01:13]}  Bd7 {[%clk 0:01:01]} 31. Na1 {[%clk 0:01:13]}  Bc6 {[%clk 0:00:56]} 32. Nc2 {[%clk 0:01:13]}  Bb4 {[%clk 0:00:55]} 33. Nxb4 {[%clk 0:00:55]}  cxb4 {[%clk 0:00:55]} 34. Bf1 {[%clk 0:00:55]}  a5 {[%clk 0:00:52]} 35. c5 {[%clk 0:00:54]}  Bf3 {[%clk 0:00:46]} 36. Rdc1 {[%clk 0:00:53]}  Rc7 {[%clk 0:00:46]} 37. a3 {[%clk 0:00:38]}  bxa3 {[%clk 0:00:42]} 38. Ra1 {[%clk 0:00:31]}  Rec8 {[%clk 0:00:42]} 39. Ba6 {[%clk 0:00:31]}  Ra8 {[%clk 0:00:39]} 40. Bd3 {[%clk 0:00:31]}  Rac8 {[%clk 0:00:37]} 41. Bf5 {[%clk 0:00:31]}  Rd8 {[%clk 0:00:35]} 42. Rxa3 {[%clk 0:00:31]}  Rxc5 {[%clk 0:00:28]} 43. Rxf3 {[%clk 0:00:14]}  Rxc1+ {[%clk 0:00:26]} 44. Kh2 {[%clk 0:00:14]}  gxf3 {[%clk 0:00:27]} 0-1


[Site "https://www.chess.com"]

[Event "Titled Tuesday Blitz June 07 Late 2022"]
[White "Makarian, Rudik"]
[Black "Bortnyk, Olexandr"]
[WhiteFideId "44105681"]
[BlackFideId "14120828"]
[WhiteElo "2398"]
[BlackElo "2723"]
[Result "0-1"]
[Round "03"]
[TimeControl "180+1"]
[Date "2022.06.07"]
[WhiteClock "0:00:01"]
[BlackClock "0:00:05"]

1. d3 {[%clk 0:03:00]}  d5 {[%clk 0:02:48]} 2. f4 {[%clk 0:03:00]}  Bf5 {[%clk 0:02:43]} 3. Nf3 {[%clk 0:02:57]}  e6 {[%clk 0:02:42]} 4. g3 {[%clk 0:02:57]}  h6 {[%clk 0:02:41]} 5. Bg2 {[%clk 0:02:57]}  Nf6 {[%clk 0:02:41]} 6. O-O {[%clk 0:02:57]}  Bc5+ {[%clk 0:02:22]} 7. Kh1 {[%clk 0:02:53]}  a6 {[%clk 0:02:21]} 8. c3 {[%clk 0:02:51]}  Nbd7 {[%clk 0:02:19]} 9. Qe1 {[%clk 0:02:47]}  Ba7 {[%clk 0:01:52]} 10. Nbd2 {[%clk 0:02:26]}  Bh7 {[%clk 0:01:40]} 11. h3 {[%clk 0:01:58]}  Qe7 {[%clk 0:01:33]} 12. d4 {[%clk 0:01:49]}  g5 {[%clk 0:01:21]} 13. Ne5 {[%clk 0:01:18]}  O-O-O {[%clk 0:01:09]} 14. e3 {[%clk 0:01:07]}  Rdg8 {[%clk 0:01:05]} 15. Kh2 {[%clk 0:01:06]}  h5 {[%clk 0:00:52]} 16. fxg5 {[%clk 0:01:01]}  Rxg5 {[%clk 0:00:53]} 17. Nxd7 {[%clk 0:00:59]}  Nxd7 {[%clk 0:00:37]} 18. e4 {[%clk 0:00:56]}  Rhg8 {[%clk 0:00:34]} 19. Rf3 {[%clk 0:00:55]}  c6 {[%clk 0:00:25]} 20. e5 {[%clk 0:00:51]}  f6 {[%clk 0:00:26]} 21. exf6 {[%clk 0:00:31]}  Nxf6 {[%clk 0:00:27]} 22. Nf1 {[%clk 0:00:31]}  R5g7 {[%clk 0:00:25]} 23. Bf4 {[%clk 0:00:31]}  Be4 {[%clk 0:00:23]} 24. Rf2 {[%clk 0:00:29]}  Bxg2 {[%clk 0:00:21]} 25. Rxg2 {[%clk 0:00:30]}  Bb8 {[%clk 0:00:13]} 26. Bxb8 {[%clk 0:00:29]}  Kxb8 {[%clk 0:00:14]} 27. Nd2 {[%clk 0:00:29]}  Ka8 {[%clk 0:00:12]} 28. Qe5 {[%clk 0:00:28]}  Rg5 {[%clk 0:00:12]} 29. Qf4 {[%clk 0:00:28]}  Rf5 {[%clk 0:00:12]} 30. Qe3 {[%clk 0:00:28]}  Qd6 {[%clk 0:00:10]} 31. Nf3 {[%clk 0:00:22]}  h4 {[%clk 0:00:08]} 32. Nxh4 {[%clk 0:00:19]}  Rh5 {[%clk 0:00:08]} 33. Qf3 {[%clk 0:00:11]}  Rxh4 {[%clk 0:00:03]} 34. Qxf6 {[%clk 0:00:11]}  Rgh8 {[%clk 0:00:04]} 35. Kg1 {[%clk 0:00:01]}  Rxh3 {[%clk 0:00:05]} 0-1


[Site "https://www.chess.com"]